[Event "AUT Bundesliga 2024-25"]
[Site "Austria"]
[Date "2025.04.04"]
[Round "8.20"]
[White "Banusz, Tamas"]
[Black "Petrov, Nikita"]
[Result "1/2-1/2"]
[Annotator "TA"]
[ECO "E05"]
[WhiteElo "2592"]
[BlackElo "2567"]
[PlyCount "210"]
[EventDate "2024.08.28"]
[EventType "team-tourn"]
[EventCountry "AUT"]
[SourceTitle "playchess.com"]
[Source "ChessBase"]
[SourceQuality "1"]
[TimeControl "40/5400+30:1800+30"]

{[%evp 26,210,0,3,16,8,12,4,14,0,0,0,4,0,17,0,18,8,42,33,40,52,35,32,37,36,36,43,41,36,35,24,62,19,37,32,37,31,35,37,33,33,33,17,22,14,12,6,14,6,7,0,0,2,2,0,5,9,13,8,10,8,9,10,22,0,0,0,9,0,0,0,0,0,0,0,0,0,8,8,8,8,8,8,15,8,8,8,8,8,8,8,8,8,8,8,8,8,8,8,8,8,8,8,8,8,8,8,8,8,10,0,8,8,8,8,14,0,0,0,0,0,8,0,0,0,6,0,0,0,0,0,6,6,6,6,6,0,0,0,0,0,0,0,8,0,0,0,8,8,18,18,48,18,6322,5603,5089,2094,822,0,7120,6673,12785,12785,12785,12785,11910,7967,12769,0,6260,6045,5792,5723,5579,5512,5245,0,0,0,0,0,0,0,0,0,0]} 1. c4 {[%emt 0:00:05]} e6 {[%emt 0:00:23]} 2. g3 {[%emt 0:00:55]} d5 {[%emt 0:00:51]} 3. Bg2 {[%emt 0:00:13]} Nf6 {[%emt 0:00:11]} 4. Nf3 {[%emt 0:00:25]} Be7 {[%emt 0:00:46]} 5. O-O {[%emt 0:02:08]} O-O {[%emt 0:00:09]} 6. d4 {[%emt 0:00:28]} dxc4 {[%emt 0:00:19]} 7. Qa4 {[%emt 0:00:31]} a6 {[%emt 0:00:52]} 8. Qxc4 {[%emt 0:00:07]} b5 {[%emt 0:00:06]} 9. Qc2 {[%emt 0:00:14]} Bb7 {[%emt 0:00:13]} 10. Bg5 {[%emt 0:01:12]} Nbd7 {[%emt 0:04:14][%cal Bb8d7,Bd7f6,Bf6e4][%mdl 32]} 11. Bxf6 {[%emt 0:02:01]} Nxf6 {[%emt 0:00:28]} 12. Nbd2 {[%emt 0:00:07]} Rc8 {[%emt 0:04:27]} 13. Nb3 {[%emt 0:00:39]} c5 {[%emt 0:05:39]} 14. dxc5 {[%emt 0:00:32]} Be4 {[%emt 0:08:00] Black sacrificed a pawn E05: Open Catalan: 5 Nf3 Be7.} 15. Qc3 {[%emt 0:00:45]} Bd5 {[%emt 0:14:37]} 16. Rfd1 {[%emt 0:15:51]} Ne4 {[%emt 0:04:51][%csl LRc3,LRc5]} 17. Qe3 {[%emt 0:06:46]} Nxc5 {[%emt 0:04:50]} 18. Ne5 {[%emt 0:11:13]} Na4 $146 {[%emt 0:09:40]} (18... Nxb3 19. axb3 Qd6 20. Bxd5 exd5 21. Nd3 Bf6 22. Qa7 Rc6 23. Rdc1 Rxc1+ 24. Rxc1 Re8 {0-1 Grandelius,N (2656)-So,W (2778) Chess.com Rapid Wk10 Swiss 2022 (7)}) 19. Bxd5 {[%emt 0:05:33]} exd5 {[%emt 0:00:11]} 20. Qf3 {[%emt 0:00:23]} Nb6 {[%emt 0:07:42]} 21. Nd4 {[%emt 0:05:23]} g6 {[%emt 0:08:07]} 22. Nec6 {[%emt 0:17:49] A dynamic duo of knights.} Qd6 {[%emt 0:00:17]} 23. Nxe7+ {[%emt 0:00:09]} Qxe7 {[%emt 0:00:04]} 24. b3 {[%emt 0:00:38]} Rc5 {[%emt 0:01:52]} 25. Rac1 {[%emt 0:05:33]} Rfc8 {[%emt 0:01:03]} 26. Rxc5 {[%emt 0:00:26]} Rxc5 {[%emt 0:00:16]} 27. Qf4 {[%emt 0:00:13]} Nd7 {[%emt 0:02:11]} 28. Qd2 {[%emt 0:04:47]} Qf6 {[%emt 0:01:56]} 29. Qb4 {[%emt 0:01:23]} Kg7 {[%emt 0:02:15]} 30. Kg2 {[%emt 0:02:18]} Qe5 {[%emt 0:06:54]} 31. a4 {[%emt 0:02:03]} bxa4 {[%emt 0:01:07]} 32. Qxa4 {[%emt 0:00:08]} Qd6 {[%emt 0:00:16]} 33. Qb4 {[%emt 0:03:52]} a5 {[%emt 0:01:58]} 34. Qb7 {[%emt 0:01:24]} Nf6 {[%emt 0:03:29]} 35. Qa7 {[%emt 0:02:02][%cal Od4e6]} Qc7 {[%emt 0:01:38]} 36. Qxc7 {[%emt 0:01:38]} (36. Qa6 {feels hotter.} Qe5 37. e3 h5 38. Qa7) 36... Rxc7 $11 {[%emt 0:00:03][%mdl 4096] Endgame KRN-KRN} 37. Ra1 {[%emt 0:00:06]} Rc5 {[%emt 0:00:06]} 38. f3 {[%emt 0:03:01]} Ne8 {[%emt 0:01:15]} 39. Kf2 {[%emt 0:00:41]} Nc7 {[%emt 0:01:53]} 40. Ke3 {[%emt 0:00:39]} Kf6 {[%emt 0:03:44]} 41. Kd2 {[%emt 0:08:21]} Na6 {[%emt 0:07:50]} 42. Nc2 {[%emt 0:05:09]} Ke5 {[%emt 0:01:33]} 43. Ra4 {[%emt 0:01:17]} h5 {[%emt 0:02:57]} 44. h4 {[%emt 0:03:58]} f5 {[%emt 0:04:10]} 45. Ne1 {[%emt 0:07:13]} Rb5 {[%emt 0:03:35]} 46. Nd3+ {[%emt 0:00:15]} Kf6 {[%emt 0:00:03]} 47. Kc3 {[%emt 0:02:51]} Nc5 {[%emt 0:01:36]} 48. Ra3 {[%emt 0:01:34]} Nxd3 {[%emt 0:02:50]} 49. exd3 {[%emt 0:00:35] KR-KR} f4 {[%emt 0:04:21]} 50. gxf4 {[%emt 0:00:05]} Kf5 {[%emt 0:00:05]} 51. Ra4 {[%emt 0:00:19]} Rc5+ {[%emt 0:00:21]} 52. Kd4 {[%emt 0:02:20]} Rb5 {[%emt 0:00:07]} 53. Ke3 {[%emt 0:00:37]} Ke6 {[%emt 0:00:40]} 54. Ra1 {[%emt 0:00:42]} Kf6 {[%emt 0:00:58]} 55. Rc1 {[%emt 0:00:56]} Rxb3 {[%emt 0:00:41]} 56. Rc6+ {[%emt 0:00:10]} Kf7 {[%emt 0:01:23]} 57. Rc5 {[%emt 0:00:07][%csl LRa5,LRd5]} Ke6 {[%emt 0:03:38]} ({Don't play} 57... a4 58. Rxd5 Rb4 59. Rc5 $16) 58. Rxa5 {[%emt 0:00:11]} Rb1 {[%emt 0:00:29] [#]} 59. f5+ $1 {[%emt 0:00:08]} Kxf5 {[%emt 0:00:47]} 60. Rxd5+ {[%emt 0:00:06]} Ke6 {[%emt 0:00:08]} 61. Rd4 {[%emt 0:01:51]} Kf5 {[%emt 0:02:42]} 62. Rf4+ {[%emt 0:01:41]} Ke6 {[%emt 0:00:04]} 63. d4 {[%emt 0:01:52]} Re1+ {[%emt 0:00:59]} 64. Kf2 {[%emt 0:00:10]} Rd1 {[%emt 0:00:33]} 65. Ke2 {[%emt 0:01:00]} Ra1 {[%emt 0:00:14]} 66. Re4+ {[%emt 0:00:39]} Kf5 {[%emt 0:00:37]} 67. Re5+ {[%emt 0:01:20]} Kf4 {[%emt 0:00:12]} 68. Re4+ {[%emt 0:01:07]} Kf5 $1 {[%emt 0:00:08]} 69. Kf2 {[%emt 0:00:45]} Rb1 {[%emt 0:00:23]} 70. Re8 {[%emt 0:00:33]} Rh1 {[%emt 0:01:33]} 71. Rf8+ {[%emt 0:00:25]} Ke6 {[%emt 0:00:04]} 72. Kg3 {[%emt 0:00:35]} Ke7 {[%emt 0:01:17]} 73. Ra8 {[%emt 0:00:55]} Rd1 {[%emt 0:00:31]} 74. Ra6 {[%emt 0:00:32]} Kf7 {[%emt 0:00:09]} 75. Rd6 {[%emt 0:00:08]} Rg1+ {[%emt 0:00:42]} 76. Kh2 {[%emt 0:01:05]} Rd1 {[%emt 0:00:13]} 77. Kg2 {[%emt 0:00:10]} Ra1 {[%emt 0:00:25]} 78. Kg3 {[%emt 0:00:40]} Rg1+ {[%emt 0:00:10]} 79. Kf4 {[%emt 0:00:12]} Rh1 {[%emt 0:00:08]} 80. d5 {[%emt 0:01:11]} Rxh4+ {[%emt 0:00:10]} 81. Ke5 {[%emt 0:00:26]} Rh1 {[%emt 0:01:09]} 82. Rd7+ {[%emt 0:00:38]} Ke8 {[%emt 0:00:23]} 83. Rg7 {[%emt 0:00:13]} Re1+ {[%emt 0:00:59]} 84. Kd6 {[%emt 0:00:16]} Rf1 {[%emt 0:00:28]} 85. Ke6 {[%emt 0:02:19][%cal Rg7g8]} Re1+ {[%emt 0:00:26]} 86. Kd6 {[%emt 0:00:22]} h4 {[%emt 0:00:57]} 87. Rxg6 {[%emt 0:00:31]} h3 {[%emt 0:00:15] And now ...h2 would win.} 88. Rh6 {[%emt 0:00:25]} Rh1 {[%emt 0:00:04]} 89. Rh7 {[%emt 0:00:47]} h2 $2 {[%emt 0:00:16][%mdl 8192]} (89... Rh2 $11) 90. Re7+ $18 {[%emt 0:00:48]} Kf8 {[%emt 0:00:12] [#]} 91. Re2 $1 {[%emt 0:00:22]} Kf7 {[%emt 0:00:10]} 92. Rd2 $2 {[%emt 0:00:39]} (92. Rc2 $18 {Strongly threatening f4.} Kf6 93. Kc6) 92... Ke8 $2 {[%emt 0:00:51][%mdl 8192]} (92... Kg6 $11) 93. f4 {[%emt 0:00:17][%cal Bf3f4,Bf4f5][%mdl 32]} Kd8 {[%emt 0:01:48]} 94. f5 {[%emt 0:00:32]} Kc8 {[%emt 0:00:05]} 95. Rf2 {[%emt 0:00:42] Intending f6 and mate.} Kd8 {[%emt 0:00:37]} 96. Re2 {[%emt 0:00:06]} Kc8 {[%emt 0:00:13]} 97. Rf2 {[%emt 0:00:45]} (97. Ke7 $142 Rf1 98. Rxh2) 97... Kd8 {[%emt 0:00:11]} 98. Rc2 {[%emt 0:00:30]} Ke8 {[%emt 0:00:10]} 99. f6 {[%emt 0:00:24]} Kf7 {[%emt 0:01:39]} 100. Rf2 {[%emt 0:00:43]} Ke8 {[%emt 0:00:09]} 101. Rc2 $2 {[%emt 0:00:11]} (101. f7+ $18 Kf8 102. Kd7) 101... Kf7 $11 {[%emt 0:00:13] The position is equal.} 102. Kc6 {[%emt 0:00:51]} Kxf6 {[%emt 0:01:19]} 103. d6 {[%emt 0:00:04]} Ke6 {[%emt 0:00:34]} 104. Re2+ {[%emt 0:00:44]} Kf5 $1 {[%emt 0:00:18] ( -> ...Rc1+)} 105. Kd7 {[%emt 0:00:01]} Kf4 {[%emt 0:00:15] Weighted Error Value: White=0.05 (flawless) /Black=0.04 (flawless)   Loses game:     	---       	Black=1      Inaccurate:     	White=2     	Black=3      OK:         	White=28    	Black=37     Best:        	White=2     	Black=5      Strong:       	---       	Black=2} 1/2-1/2

[Event "AUT Bundesliga 2024-25"]
[Site "Austria"]
[Date "2025.04.04"]
[Round "8.21"]
[White "Erdos, Viktor"]
[Black "Blohberger, Felix"]
[Result "*"]
[Annotator "TA"]
[ECO "C75"]
[WhiteElo "2542"]
[BlackElo "2511"]
[PlyCount "95"]
[EventDate "2024.08.28"]
[EventType "team-tourn"]
[EventCountry "AUT"]
[SourceTitle "playchess.com"]
[Source "ChessBase"]
[SourceQuality "1"]
[TimeControl "40/5400+30:1800+30"]

{[%evp 17,95,37,45,41,56,37,61,39,53,48,61,50,51,37,50,45,50,37,37,42,45,43,48,44,45,43,47,26,36,47,43,42,41,44,44,45,47,45,46,14,47,34,40,42,37,43,170,171,166,172,164,153,153,147,147,147,147,147,147,147,147,147,147,147,158,158,158,158,374,357,309,224,352,131,130,0,317,0,143,141]} 1. e4 {[%emt 0:00:07]} e5 {[%emt 0:00:36]} 2. Nf3 {[%emt 0:00:05]} Nc6 {[%emt 0:00:25]} 3. Bb5 {[%emt 0:00:05]} a6 {[%emt 0:00:44]} 4. Ba4 {[%emt 0:00:07]} d6 {[%emt 0:01:09]} 5. O-O {[%emt 0:00:41]} Bd7 {[%emt 0:00:44]} 6. c3 {[%emt 1:32:25]} Nge7 {[%emt 0:00:37]} 7. d4 {[%emt 0:01:48]} Ng6 {[%emt 0:00:06]} 8. Be3 {[%emt 0:09:34]} Be7 {[%emt 0:00:52]} 9. Nbd2 {[%emt 0:00:05]} O-O {[%emt 0:00:08]} 10. a3 {[%emt 0:11:19] C75: Ruy Lopez: Deferred Steinitz: 5 c3 Bd7 6 d4 without ...g6.} Kh8 {[%emt 0:08:21]} 11. Re1 {[%emt 0:03:33]} a5 $146 {[%emt 0:34:26]} (11... exd4 12. cxd4 f5 13. exf5 Bxf5 14. Rc1 Bd7 15. Bc2 d5 16. Bxg6 hxg6 17. Qb3 Bc8 18. Qc3 Rf5 19. Nb3 Bd6 20. Bd2 Rh5 21. Nc5 Rb8 22. Nxa6 bxa6 23. Qxc6 Bd7 24. Bg5 {1-0 Marcotulli,G (2220)-Balmelle,J (2240) IECG CM.2003.0.00212 email}) 12. Rc1 {[%emt 0:20:08] White is slightly better.} Nh4 {[%emt 0:18:12]} 13. Nxh4 {[%emt 0:06:59]} Bxh4 {[%emt 0:00:07]} 14. Nf3 {[%emt 0:00:08]} Bf6 {[%emt 0:00:15]} 15. d5 {[%emt 0:00:15]} Nb8 {[%emt 0:01:22]} 16. c4 {[%emt 0:05:23]} b6 {[%emt 0:00:20]} 17. Bxd7 {[%emt 0:02:19]} Nxd7 {[%emt 0:30:36]} 18. b4 {[%emt 0:00:05]} axb4 {[%emt 0:30:23]} 19. axb4 {[%emt 0:00:03]} Be7 {[%emt 0:00:07]} 20. Qc2 {[%emt 0:03:46]} Qc8 {[%emt 0:07:30]} 21. Ra1 {[%emt 0:05:19]} Qb7 {[%emt 0:22:29]} 22. h3 {[%emt 0:00:21]} Ra6 {[%emt 0:04:47]} 23. Ra4 {[%emt 0:29:26]} Rfa8 {[%emt 0:00:32]} 24. Rea1 {[%emt 0:00:04]} R8a7 {[%emt 0:01:37]} 25. Ne1 {[%emt 0:03:30] Space Advantage White} Qa8 {[%emt 0:01:06]} 26. Rxa6 {[%emt 0:00:11]} Rxa6 {[%emt 0:00:04]} 27. Rxa6 {[%emt 0:00:05]} Qxa6 {[%emt 0:00:04]} 28. Nd3 {[%emt 0:00:12]} Qa1+ {[%emt 0:02:57]} 29. Kh2 {[%emt 0:00:53]} g6 {[%emt 0:01:00]} 30. c5 {[%emt 0:03:16]} bxc5 {[%emt 0:00:11]} 31. bxc5 {[%emt 0:00:04]} Nxc5 {[%emt 0:02:52]} ({Black should play} 31... Kg7 $14) 32. Nxc5 $18 {[%emt 0:00:51]} dxc5 {[%emt 0:00:05]} 33. Bxc5 $14 {[%emt 0:01:13][%mdl 4096] Endgame KQB-KQB} Bg5 {[%emt 0:05:14]} 34. Bb4 {[%emt 0:22:15][%cal Oc2c6] Prevents Qa5.} Qa7 {[%emt 0:02:35]} 35. Qc5 {[%emt 0:09:12]} Qxc5 {[%emt 0:05:58]} 36. Bxc5 $16 {[%emt 0:00:02] KB-KB} f5 {[%emt 0:01:03]} 37. f3 {[%emt 0:01:15]} Kg7 {[%emt 0:00:55]} 38. Bb4 {[%emt 0:01:05]} Be3 {[%emt 0:00:48]} 39. Be7 {[%emt 0:00:34]} Ba7 {[%emt 0:00:41]} 40. Bd8 {[%emt 0:01:14]} Bb8 {[%emt 0:00:06]} 41. Kg3 $1 {[%emt 0:31:49] White is more active.} Kf7 {[%emt 0:01:15]} 42. Kh4 $1 {[%emt 0:03:04]} h6 $2 {[%emt 0:01:27]} (42... fxe4 $16 43. fxe4 h6) 43. exf5 $1 $18 {[%emt 0:01:05]} gxf5 {[%emt 0:00:07]} 44. Kh5 {[%emt 0:03:29]} Kg7 {[%emt 0:03:17] [#]} 45. Bh4 $2 {[%emt 0:00:57]} (45. h4 $1 $18 e4 46. fxe4 fxe4 47. Kg4) 45... Ba7 $16 {[%emt 0:01:08]} 46. Bd8 $2 {[%emt 0:00:16]} (46. Be7 $16) 46... Bb8 $18 {[%emt 0:00:10] [#]} 47. Bh4 {[%emt 0:00:09]} (47. h4 $1 $18 {is the precise move to win. Be7 would now be deadly.} e4 48. fxe4 fxe4 49. Kg4) 47... Ba7 $1 $16 {[%emt 0:00:05] Loses game:     	---       	Black=1      Missed win:     	White=2     	---        Mistake:       	White=1     	Black=1      Inaccurate:     	White=1     	Black=1      OK:         	White=14    	Black=8      Best:        	White=1     	Black=3      Strong:       	White=2     	Black=1} 48. Be1 {[%emt 0:03:18] Weighted Error Value: White=0.22 (precise) /Black=0.13 (very precise)} *

[Event "AUT Bundesliga 2024-25"]
[Site "Austria"]
[Date "2025.04.04"]
[Round "8.22"]
[White "Peyrer, Konstantin"]
[Black "Sankalp Gupta"]
[Result "0-1"]
[Annotator "TA"]
[ECO "A21"]
[WhiteElo "2451"]
[BlackElo "2548"]
[PlyCount "96"]
[EventDate "2024.08.28"]
[EventType "team-tourn"]
[EventCountry "AUT"]
[SourceTitle "playchess.com"]
[Source "ChessBase"]
[SourceQuality "1"]
[TimeControl "40/5400+30:1800+30"]

{[%evp 9,95,20,30,25,20,27,26,17,15,18,38,8,14,6,0,-56,43,59,49,42,76,-32,0,-60,30,9,19,31,17,27,12,16,21,-12,0,0,0,0,0,0,0,-6,-7,-12,-7,-30,-23,-31,-28,-46,-38,-45,-23,-30,-27,-52,-14,-7,0,0,0,-285,-212,-392,-398,-384,-371,-325,-375,-364,-358,-336,0,0,0,-362,-338,-338,-34,-26,0,0,0,-663,-390,-29962,-29953,-29999]} 1. c4 {[%emt 0:00:07]} e5 {[%emt 0:00:26]} 2. Nc3 {[%emt 0:00:09]} Bb4 {[%emt 0:00:06]} 3. Nd5 {[%emt 0:00:09]} a5 {[%emt 0:01:47]} 4. a3 {[%emt 0:00:43]} Bc5 {[%emt 0:01:03]} 5. e3 {[%emt 0:00:22]} d6 {[%emt 0:01:25]} 6. Nf3 {[%emt 0:01:55] A21: English Opening: 1...e5 2 Nc3.} Nd7 {[%emt 0:05:07]} 7. d4 {[%emt 0:16:22]} Ba7 {[%emt 0:00:27]} 8. Qc2 {[%emt 0:01:04] White has an edge.} c6 {[%emt 0:02:27]} 9. Nc3 {[%emt 0:01:47]} Ngf6 {[%emt 0:00:38]} 10. Bd2 {[%emt 0:01:54]} O-O {[%emt 0:00:37]} 11. O-O-O {[%emt 0:02:57]} Re8 {[%emt 0:03:03]} 12. h4 $146 {[%emt 0:04:13]} ({White should try} 12. Kb1 $11) (12. h3 e4 13. Nh2 d5 14. g4 dxc4 15. g5 Nd5 16. Nxe4 Qe7 17. Ng3 b5 18. Nf5 {½-½ Praggnanandhaa,R (2741)-Abdusattorov,N (2768) Tata Steel-A 87th 2025 (1)}) 12... e4 {[%emt 0:07:41]} (12... Qe7 $15) 13. Ng5 $14 {[%emt 0:01:15]} d5 {[%emt 0:00:18]} 14. f3 {[%emt 0:02:50][%cal Rf3e4]} h6 {[%emt 0:03:20]} 15. Nh3 {[%emt 0:04:22]} (15. cxd5 $1 $16 cxd5 (15... hxg5 16. dxc6 Nf8 17. hxg5 $11) 16. Bb5) 15... Nf8 {[%emt 0:01:49]} (15... c5 {looks sharper.} 16. g4 cxd4 17. exd4 Bxd4 18. g5 Nc5) 16. Nf2 {[%emt 0:00:40]} (16. cxd5 $11 exf3 17. dxc6) 16... c5 {[%emt 0:22:22]} (16... exf3 $15 17. gxf3 dxc4) 17. dxc5 $11 {[%emt 0:08:11] With the idea Nxd5.} exf3 {[%emt 0:00:31]} 18. gxf3 {[%emt 0:02:02]} Bxc5 {[%emt 0:00:07]} 19. cxd5 {[%emt 0:00:15]} Bxe3 {[%emt 0:10:52]} 20. Nfe4 {[%emt 0:02:44]} Bxd2+ {[%emt 0:01:12]} 21. Rxd2 {[%emt 0:00:06]} Ng6 {[%emt 0:02:48]} 22. h5 {[%emt 0:05:50]} Ne5 {[%emt 0:07:10]} 23. Bb5 {[%emt 0:01:20]} Nxe4 {[%emt 0:02:47]} 24. fxe4 {[%emt 0:11:46]} Bd7 {[%emt 0:00:01]} 25. Bxd7 {[%emt 0:00:31]} Qxd7 {[%emt 0:00:02]} 26. Rg2 {[%emt 0:00:12]} Nf3 {[%emt 0:03:34] Prevents Rhg1.} 27. Qd3 {[%emt 0:12:43]} Ng5 {[%emt 0:00:09]} 28. Kb1 {[%emt 0:00:28]} Re5 {[%emt 0:00:55]} 29. Rc1 {[%emt 0:01:53]} Rae8 {[%emt 0:00:36]} 30. d6 {[%emt 0:01:29]} f6 {[%emt 0:03:21][%cal Og5f7]} (30... Nxe4 $6 31. Nxe4 Rxe4 32. Qg3 $16) 31. a4 {[%emt 0:01:27]} Rc8 {[%emt 0:04:52]} (31... Nxe4 $2 32. Nxe4 Rxe4 33. Rc7 Re1+ (33... Qxa4 34. Rgxg7+ Kh8 35. Rh7+ Kg8 36. Qd5+ R8e6 37. Rc8+) 34. Kc2 Qxa4+ 35. Qb3+ Qxb3+ 36. Kxb3 a4+ 37. Kb4 $18 (37. Kxa4 Ra1+ 38. Kb3 g5 $18)) 32. Rgc2 {[%emt 0:01:18]} Rc6 {[%emt 0:00:33]} 33. Nb5 {[%emt 0:02:21]} Nxe4 {[%emt 0:01:26]} (33... Rxe4 $6 34. Qd5+ Qf7 35. Qxf7+ Nxf7 36. Rxc6 bxc6 37. Rxc6 $16) 34. Rxc6 {[%emt 0:01:31]} bxc6 {[%emt 0:00:01]} 35. Qc4+ {[%emt 0:00:06][%mdl 8192]} (35. Rxc6 $11 {and White has nothing to worry.} Qxc6 (35... Nd2+ 36. Qxd2 Qxc6 37. d7 $11) 36. d7) 35... Kf8 {[%emt 0:00:30] ...Nd2+ would now be deadly.} 36. Qxc6 $2 {[%emt 0:00:08]} (36. Qc2) 36... Nd2+ $19 {[%emt 0:00:08]} 37. Ka1 {[%emt 0:03:54]} Nb3+ {[%emt 0:00:06]} 38. Kb1 {[%emt 0:00:04] [#]} Qf5+ {[%emt 0:00:30]} 39. Rc2 {[%emt 0:00:37] [#]} Nd2+ $1 {[%emt 0:02:49]} 40. Kc1 {[%emt 0:00:07]} Nb3+ $2 {[%emt 0:05:50]} (40... Qf1+ $19 41. Kxd2 Re2+ 42. Kc3 Qh3+ (42... Re3+ $2 43. Kd4 $19) 43. Kd4 Qe3+ (43... Qxh5 $2 44. Rxe2 Qxe2 45. Qc8+ Kf7 46. d7 $18) 44. Kc4 Rxc2+ 45. Nc3 Rd2 (45... Rxb2 46. Qc8+ Kf7 47. Qc7+ Kg8 48. Qc8+ Kh7 49. Qf5+ Kg8 50. Qc8+ Kh7 51. Qf5+ Kg8 52. Qc8+ $11) 46. Qc8+ Qe8 47. Qxe8+ Kxe8) 41. Kb1 $11 {[%emt 0:30:05]} Nd2+ $2 {[%emt 0:11:21][%mdl 8192]} (41... Rc5 $11 42. Qa8+ Kf7) 42. Kc1 $1 $19 {[%emt 0:00:00] Black must now prevent Qc8+.} Qf1+ {[%emt 0:09:13]} 43. Kxd2 {[%emt 0:00:00]} Qf2+ $2 $40 {[%emt 0:03:53][%mdl 128] White needs to defend precisely.} (43... Re2+ $19 44. Kd3 (44. Kc3 $2 Qh3+ 45. Kd4 Qe3+ 46. Kc4 Rxc2+ 47. Nc3 Rd2 $19) 44... Rh2+ (44... Qd1+ $2 45. Kc4 $19) 45. Kc3 Qh3+ (45... Rxh5 $2 46. Kb3 $18) (45... Rh3+ 46. Kd4 $17) 46. Kd4 Qg4+ 47. Qe4 (47. Ke3 $2 Qg3+ 48. Kd4 Qf4+ 49. Qe4 Qxe4+ 50. Kxe4 Rxc2 $19) 47... Qxe4+ (47... Rxc2 $2 48. Qxg4 Rd2+ 49. Kc3 $18) 48. Kxe4 Rxc2) 44. Kd3 $15 {[%emt 0:00:00]} Re3+ {[%emt 0:00:14][%mdl 1024] Black has compensation.} 45. Kd4 {[%emt 0:00:00]} Re2+ {[%emt 0:00:05]} 46. Kd5 $2 {[%emt 0:00:00][%mdl 8192]} (46. Kc4 $11 Rxc2+ 47. Nc3 Qe2+ (47... Rxb2 48. Qc8+ Kf7 49. Qd7+ Kg8 50. Qe8+ Kh7 51. Qg6+ Kh8 52. Qe8+ Kh7 53. Qg6+ Kg8 54. Qe8+ Kh7 $11) 48. Kb3 Rxb2+ (48... Qxh5 $2 49. Kxc2 Qf5+ 50. Kb3 $18) 49. Ka3) 46... Qf3+ {[%emt 0:02:49]} 47. Kd4 $2 {[%emt 0:00:00]} (47. Kc5 $19 Qe3+ (47... Rxc2+ $2 48. Nc3 $19) 48. Kc4 Rxc2+ 49. Nc3) 47... Qf4+ {[%emt 0:01:12]} (47... Qxh5 $2 {perishes.} 48. Rxe2 Qxe2 49. Qc8+ Kf7 50. d7 Qxb2+ 51. Nc3 (51. Kc5 Qe5+ 52. Kc6 Qe4+ 53. Kc7 Qe5+ 54. Nd6+ Kg6 $18) 51... Qb6+ 52. Kd3 (52. Qc5 Qb8 $18) 52... Qd6+ 53. Kc2 $18) 48. Kd5 {[%emt 0:00:00]} Re5# {[%emt 0:00:09] Weighted Error Value: White=0.46/Black=0.49  Loses game:     	White=2     	---        Missed win:     	---       	Black=2      Mistake:       	White=5     	Black=3      Inaccurate:     	White=2     	Black=4      OK:         	White=10    	Black=15     Best:        	White=8     	Black=5      Strong:       	White=1     	Black=1} 0-1